bitfinex-derivatives/quotes_ETHF0:USTF0_20241231
["timestamp","ask_amount","ask_price","bid_price","bid_amount"]
[1735641104316,0.29524,3392.6,3392.4,1.15796]
[1735641105116,0.29525,3392.5,3392.4,0.8627]
[1735641106318,0.29525,3392.5,3392.4,1.15796]
[1735641106521,0.29524,3392.6,3392.4,0.8627]
[1735641106713,0.29524,3392.6,3392.4,1.15795]
[1735641107418,0.29525,3392.5,3392.4,1.15795]
[1735641107718,0.29523,3392.8,3392.4,0.8627]
[1735641107907,0.29523,3392.8,3392.7,0.29523]
[1735641108419,0.8935,3393.2,3392.7,0.29523]
[1735641108719,0.29521,3393.0,3392.8,0.29522]
[1735641108920,0.8935,3393.2,3392.5,0.4388]
[1735641109221,0.8935,3393.2,3392.5,1.17692]
[1735641109417,0.2952,3393.1,3392.9,0.29521]
[1735641111318,0.29519,3393.2,3393.0,0.2952]
[1735641111516,0.29519,3393.2,3393.1,0.4169]
[1735641114523,0.29519,3393.2,3393.1,0.7121]
[1735641115221,7.80361554,3393.4,3393.1,0.4169]
[1735641115418,6.94671554,3393.4,3393.3,0.29518]
[1735641116827,7.65946554,3393.7,3393.5,0.29516]
[1735641117219,7.36431554,3393.7,3393.6,0.29515]
[1735641117431,7.36431554,3393.7,3393.4,0.29516]
[1735641117432,0.29516,3393.6,3393.4,0.29516]
[1735641117719,7.36431554,3393.7,3393.4,0.29516]
[1735641118018,0.29516,3393.5,3393.4,0.29516]
[1735641118323,0.4176,3393.7,3393.2,0.4345]
[1735641118524,0.29518,3393.3,3393.2,0.4345]
[1735641118823,0.4176,3393.7,3392.7,3.2078]
[1735641119023,0.29522,3392.9,3392.8,0.29522]
[1735641119220,0.29522,3392.8,3392.7,4.37173]
[1735641119423,0.4404,3392.8,3392.3,0.4373]
[1735641119618,0.4404,3392.8,3392.5,0.29525]
[1735641119821,0.29525,3392.5,3392.4,0.29525]
[1735641120324,0.4404,3392.8,3392.1,3.2078]
[1735641120325,0.29527,3392.4,3392.3,0.29527]
[1735641120627,0.29527,3392.3,3392.2,0.29527]
[1735641120823,0.29526,3392.4,3392.3,0.29526]
[1735641121625,0.29528,3392.2,3392.1,3.2078]
[1735641121820,0.29529,3392.0,3391.9,0.4492]
[1735641122026,0.73819,3392.3,3391.8,1.73351]
[1735641122327,0.2953,3391.9,3391.8,1.73351]
[1735641123331,0.29528,3392.1,3392.0,0.29529]
[1735641124130,0.29528,3392.3,3392.2,0.29527]
[1735641124328,6.2044101,3392.5,3392.4,0.29526]
[1735641124329,5.7841101,3392.5,3392.4,0.29526]
[1735641124724,8.9919101,3392.7,3392.6,0.29524]
[1735641124931,5.7841101,3392.7,3392.6,0.29524]
[1735641125425,5.7841101,3392.7,3392.6,2.67176217]
[1735641126030,0.29521,3393.0,3392.9,0.29521]
[1735641127030,0.29521,3393.0,3392.6,2.37652217]
[1735641127031,0.29522,3392.9,3392.8,0.29522]
[1735641128531,0.29522,3392.9,3392.5,3.2078]
[1735641128532,5.7841101,3393.1,3392.5,3.2078]
[1735641128726,6.0793101,3393.1,3392.5,3.2078]
[1735641128925,6.0793101,3393.1,3392.9,0.29521]
[1735641129122,5.7841101,3393.1,3392.6,2.37652217]
[1735641129319,5.7841101,3393.1,3393.0,0.29521]
[1735641129530,0.72447,3393.2,3393.1,0.29517]
[1735641129730,0.4293,3393.2,3393.1,0.29517]
[1735641130430,3.93933,3393.6,3393.4,0.29514]
[1735641130629,4.0758,3393.6,3393.0,3.6266]
[1735641130831,6.94671554,3393.5,3393.4,0.29514]
[1735641131633,7.38101554,3393.5,3393.0,4.0629]
[1735641131834,7.67615554,3393.5,3393.3,0.29515]
[1735641132126,7.38101554,3393.5,3393.0,4.0629]
[1735641132440,0.72945,3393.5,3393.3,0.29515]
[1735641133031,0.4343,3393.5,3393.0,4.0629]
[1735641133234,0.4343,3393.5,3393.4,0.29515]
[1735641133927,5.7918663,3393.6,3393.2,2.37652217]
[1735641134132,5.7918663,3393.6,3393.5,0.29514]
[1735641134333,5.7918663,3393.8,3393.7,0.29512]
[1735641134536,0.29521,3392.8,3392.6,0.29522]
[1735641134732,0.29521,3392.8,3392.6,0.29523]
[1735641134733,0.29522,3392.8,3392.6,0.29523]
[1735641135037,0.73796,3393.2,3392.6,3.2078]
[1735641135038,0.29522,3392.7,3392.6,3.2078]
[1735641135229,0.29522,3392.7,3392.5,7.25434625]
[1735641135431,0.29522,3392.7,3392.5,0.29524]
[1735641135936,0.29525,3392.5,3392.4,0.29525]
[1735641136136,0.29525,3392.5,3392.3,0.72785]
[1735641136439,0.73964,3392.6,3392.5,0.29524]
[1735641137133,5.7918663,3393.0,3392.3,2.80912217]
[1735641137329,0.29525,3392.5,3392.4,0.29525]
[1735641137725,0.29525,3392.5,3392.3,2.80912217]
[1735641137726,0.29524,3392.6,3392.5,0.29524]
[1735641137937,0.29523,3392.7,3392.6,0.29523]
[1735641139134,0.29524,3392.6,3392.5,0.29524]
[1735641139338,0.29523,3392.7,3392.5,0.29524]
[1735641140335,5.7918663,3392.6,3392.5,0.29524]
[1735641140931,6.0870963,3392.6,3392.3,2.80912217]
[1735641141143,5.7918663,3392.6,3392.2,0.4613]
[1735641141436,0.29526,3392.3,3392.2,3.6691]
[1735641142144,0.29526,3392.3,3392.2,3.96437]
[1735641142947,6.0871263,3392.3,3392.2,3.96437]
[1735641143247,5.7918663,3392.3,3392.2,3.96437]
[1735641144048,5.7918663,3392.5,3392.4,0.29525]
[1735641144233,5.7918663,3392.5,3392.4,2.67177217]
[1735641144438,2.8464663,3392.5,3392.4,7.67177217]
[1735641144638,2.8464663,3392.5,3392.4,5.29525]
[1735641145146,0.2952,3393.1,3393.0,0.2952]
[1735641146846,0.29521,3393.0,3392.9,0.2952]
[1735641147137,0.4581,3393.0,3392.9,0.2952]
[1735641147945,0.7533,3393.0,3392.9,0.2952]
[1735641148244,0.29521,3392.9,3392.8,3.50301]
[1735641148641,0.75331,3393.0,3392.9,0.29521]
[1735641148946,0.29521,3392.9,3392.8,3.50301]
[1735641150443,0.4581,3393.0,3392.8,3.2078]
[1735641150745,0.4209,3393.3,3392.8,3.2078]
[1735641150934,0.71608,3393.3,3393.2,0.29518]
[1735641151537,0.4209,3393.3,3393.2,0.29518]
[1735641151749,0.461,3393.5,3393.4,0.29517]
[1735641151941,0.75616,3393.5,3393.4,0.29517]
[1735641153838,0.4215,3393.7,3393.2,3.2078]
[1735641154043,0.4215,3393.7,3393.6,0.29515]
[1735641154549,0.29513,3393.8,3393.3,0.73794]
[1735641154749,3.93363,3393.9,3393.8,0.29513]
[1735641155042,3.6385,3393.9,3393.8,0.29513]
[1735641155644,0.4307,3393.9,3393.8,0.29513]
[1735641156447,0.4307,3393.9,3393.7,0.29514]
[1735641156647,0.72582,3393.9,3393.7,0.29514]
[1735641157255,0.4307,3393.9,3393.7,0.29514]
[1735641158548,0.4307,3393.9,3393.2,3.2078]
[1735641158746,0.4307,3393.9,3393.5,0.29515]
[1735641158747,0.29514,3393.7,3393.5,0.29515]
[1735641159142,0.29514,3393.8,3393.6,0.29514]
[1735641159353,0.4307,3393.9,3393.6,0.29514]
[1735641159551,0.29514,3393.7,3393.6,0.29514]
[1735641159751,0.29513,3393.8,3393.6,0.29514]
[1735641159956,0.4307,3393.9,3393.2,3.2078]
[1735641160151,0.29513,3393.8,3393.7,0.29513]
[1735641160359,0.4307,3393.9,3393.8,0.29513]
[1735641160958,0.72583,3393.9,3393.7,0.29513]
[1735641161158,0.4307,3393.9,3393.5,0.4291]
[1735641161458,0.72583,3393.9,3393.7,0.29514]
[1735641161658,0.4307,3393.9,3393.2,3.2078]
[1735641161960,0.29514,3393.7,3393.6,0.29515]
[1735641162561,0.29513,3393.8,3393.3,0.73794]
[1735641163059,0.72582,3393.9,3393.8,0.29513]
[1735641163261,0.29513,3393.8,3393.3,0.73794]
[1735641163460,0.4307,3393.9,3393.3,0.73794]
[1735641163654,0.29513,3393.8,3393.7,0.29514]
[1735641163857,0.4307,3393.9,3393.2,3.2078]
[1735641163858,0.29515,3393.6,3393.5,0.29515]
[1735641164161,0.29515,3393.6,3393.5,0.29516]
[1735641164566,0.29514,3393.7,3393.5,0.29516]
[1735641164759,0.29515,3393.6,3393.5,0.29516]
[1735641165753,0.29514,3393.7,3393.6,0.29514]
[1735641165953,0.4307,3393.9,3393.2,3.2078]
[1735641166259,0.4307,3393.9,3393.8,3.50293]
[1735641166459,0.4307,3393.9,3393.8,3.2078]
[1735641166460,6.94671554,3393.9,3393.8,3.2078]
[1735641166665,6.51601554,3393.9,3393.8,8.50293]
[1735641166865,6.51601554,3393.9,3393.8,8.96425302]
[1735641167062,4.16201554,3393.9,3393.8,8.96425302]
[1735641167264,3.51098554,3393.9,3393.8,9.99725302]
[1735641168271,5.78395429,3394.7,3394.6,0.29506]
[1735641168463,6.07900429,3394.7,3394.6,0.29506]
[1735641169064,0.29505,3394.7,3394.6,0.29506]
[1735641169274,2.37652217,3395.2,3394.5,3.2078]
[1735641169569,0.29506,3394.6,3394.5,3.50287]
[1735641170264,0.29506,3394.6,3394.5,3.2078]
[1735641170464,0.29511,3394.2,3394.1,3.5029]
[1735641171471,0.29509,3394.3,3394.2,0.29508]
[1735641172764,0.29511,3394.1,3394.0,0.2951]
[1735641172959,0.7377,3394.5,3393.8,0.29512]
[1735641172960,0.29513,3393.9,3393.8,0.29512]
[1735641173564,0.29515,3393.7,3393.6,0.29514]
[1735641174367,0.29513,3393.8,3393.7,0.29513]
[1735641175360,0.29513,3393.9,3393.8,0.29512]
[1735641177577,3.6527,3394.2,3393.9,0.29511]
[1735641177578,0.29512,3394.0,3393.9,0.29511]
[1735641179482,3.9478,3394.2,3394.1,0.2951]
[1735641179776,3.6527,3394.2,3394.1,0.2951]
[1735641181075,3.9478,3394.2,3394.1,0.2951]
[1735641181374,3.6527,3394.2,3393.7,3.6684]
[1735641181575,0.2951,3394.1,3394.0,0.2951]
[1735641181872,3.9478,3394.2,3394.1,0.2951]
[1735641182079,0.74,3394.2,3394.1,0.2951]
[1735641182786,0.4449,3394.2,3394.1,0.2951]
[1735641183079,0.4449,3394.2,3393.7,3.2078]
[1735641183270,0.2951,3394.1,3394.0,0.29511]
[1735641183467,0.74,3394.2,3394.1,0.2951]
[1735641183970,0.4449,3394.2,3393.7,3.2078]
[1735641184171,0.4449,3394.2,3394.0,0.29511]
[1735641184474,0.74,3394.2,3394.0,0.29511]
[1735641184878,0.74,3394.2,3394.1,0.2951]
[1735641185577,0.4449,3394.2,3394.1,0.2951]
[1735641188580,0.74,3394.2,3394.1,0.2951]
[1735641188880,0.4449,3394.2,3394.1,0.2951]
[1735641189577,0.4449,3394.2,3393.7,3.2078]
[1735641189883,0.29511,3394.1,3394.0,0.29511]
[1735641190076,0.74,3394.2,3393.8,0.29513]
[1735641190276,0.4407,3394.0,3393.9,0.29512]
[1735641190480,0.4407,3394.0,3393.8,0.29512]
[1735641190679,0.4407,3394.0,3393.3,3.2078]
[1735641190881,0.29515,3393.6,3393.5,0.29515]
[1735641191076,0.29516,3393.5,3393.4,0.29516]
[1735641191579,0.29515,3393.6,3393.5,0.29515]
[1735641191781,7.23379333,3393.6,3393.5,0.29515]
[1735641191978,0.29516,3393.5,3393.4,0.29516]
[1735641192182,0.75066,3393.5,3393.4,0.29516]
[1735641196986,6.93864333,3393.6,3393.3,5.58432217]
[1735641197285,1.17874,3393.8,3393.7,0.29514]
[1735641198089,3.2078,3393.9,3393.8,0.29513]
[1735641198090,3.50292,3393.9,3393.8,0.29513]
[1735641198290,0.4407,3394.0,3393.4,0.73791]
[1735641199091,0.4407,3394.0,3393.3,6.00792217]
[1735641199391,0.29513,3393.9,3393.8,0.29512]
[1735641200394,0.29515,3393.7,3393.6,0.29514]
[1735641200986,0.4407,3394.0,3393.7,0.29513]
[1735641201194,0.4407,3394.0,3393.3,3.6314]
[1735641201195,0.29513,3393.9,3393.8,0.29512]
[1735641202788,0.4407,3394.0,3393.9,0.29512]
[1735641203088,0.8782,3394.2,3394.1,0.2951]
[1735641204099,8.11194333,3394.2,3394.1,0.2951]
[1735641204302,0.29511,3394.1,3394.0,0.29511]
[1735641205697,8.11194333,3394.2,3394.1,0.2951]
[1735641205892,7.81684333,3394.2,3393.9,0.441]
[1735641206097,7.81684333,3394.2,3393.7,3.2078]
[1735641206294,0.29512,3394.0,3393.9,0.29512]
[1735641207699,0.29511,3394.1,3394.0,0.29511]
[1735641208394,0.29514,3393.8,3393.7,0.29513]
[1735641208699,8.55460333,3394.2,3393.5,0.4478]
[1735641208999,0.29516,3393.4,3393.3,3.50297]
[1735641211999,0.29516,3393.5,3393.4,0.29516]
[1735641218600,0.29517,3393.4,3393.3,0.29516]
[1735641219698,7.39014333,3393.6,3393.1,3.2078]
[1735641219898,0.29518,3393.2,3393.1,3.2078]
[1735641222205,0.2952,3393.0,3392.9,0.29521]
[1735641222906,0.7349,3393.0,3392.9,0.29521]
[1735641224100,0.4397,3393.0,3392.9,0.29521]
[1735641224307,0.7349,3393.0,3392.9,0.29521]
[1735641224707,0.4397,3393.0,3392.9,0.29521]
[1735641225115,0.7349,3393.0,3392.9,0.29521]
[1735641227414,0.4397,3393.0,3392.9,0.29521]
[1735641227614,1.16129,3393.1,3393.0,0.2952]
[1735641228211,0.8661,3393.1,3392.8,3.2078]
[1735641228417,0.29521,3393.0,3392.9,0.2952]
[1735641230416,0.8661,3393.1,3392.4,5.58432217]
[1735641230717,0.29521,3393.0,3392.9,0.2952]
[1735641231911,1.1613,3393.1,3393.0,0.2952]
[1735641237717,0.29521,3393.0,3392.9,0.2952]
[1735641239126,0.8661,3393.1,3392.6,0.73808]
[1735641239426,1.1613,3393.1,3393.0,0.2952]
[1735641245924,0.8661,3393.1,3392.6,0.73808]
[1735641246233,0.29521,3393.0,3392.9,0.2952]
[1735641246827,0.8661,3393.1,3392.6,0.73808]
[1735641247132,0.29522,3392.9,3392.8,0.29521]
[1735641248331,0.29524,3392.7,3392.6,0.29522]
[1735641249640,0.29522,3392.9,3392.8,0.2952]
[1735641249838,0.8661,3393.1,3392.5,0.7381]
[1735641250036,0.29521,3393.0,3392.9,0.2952]
[1735641252234,0.29523,3392.8,3392.7,0.29522]
[1735641252431,0.29524,3392.6,3392.5,0.29523]
[1735641253135,1.15224,3392.6,3392.5,0.29523]
[1735641253539,0.29524,3392.5,3392.4,3.2078]
[1735641253940,0.29524,3392.5,3392.4,1.8222]
[1735641254238,0.857,3392.6,3391.9,0.2953]
[1735641254239,0.2953,3392.0,3391.9,0.2953]
[1735641255242,0.29528,3392.2,3392.1,0.29527]
[1735641256846,3.2078,3392.4,3391.7,6.32260217]
[1735641257143,3.2078,3392.4,3392.3,0.29526]
[1735641257642,0.857,3392.6,3392.5,0.29524]
[1735641258038,3.2078,3392.8,3392.4,0.4596]
[1735641258239,6.95802493,3392.5,3392.4,0.75485]
[1735641259341,0.29523,3392.7,3392.4,0.4596]
[1735641259542,0.29523,3392.7,3392.6,0.29524]
[1735641260048,3.2078,3392.8,3392.4,0.4596]
[1735641260346,3.2078,3392.8,3392.7,0.29523]
[1735641260642,0.8615,3393.0,3392.4,0.4596]
[1735641260848,10.432945,3393.2,3393.1,0.29519]
[1735641261744,3.2078,3393.3,3393.2,0.29518]
[1735641261942,0.8666,3393.4,3393.3,0.29517]
[1735641263947,0.4334,3393.4,3393.3,0.29517]
[1735641266750,0.8666,3393.4,3393.3,0.29517]
[1735641267943,1.16177,3393.4,3393.3,0.29517]
[1735641269346,0.8666,3393.4,3393.0,0.9041]
[1735641269846,0.29518,3393.3,3393.2,0.29517]
[1735641271948,0.8666,3393.4,3393.0,0.9041]
[1735641272155,1.16177,3393.4,3393.3,0.29517]
[1735641274652,0.8666,3393.4,3393.0,0.9041]
[1735641274955,0.29519,3393.3,3393.2,0.29517]
[1735641282161,0.8666,3393.4,3393.0,0.9041]
[1735641282361,0.8666,3393.4,3393.3,3.50297]
[1735641282555,0.4334,3393.4,3393.3,3.50297]
[1735641282859,0.72857,3393.4,3393.3,3.50297]
[1735641283160,0.72857,3393.4,3393.3,0.29517]
[1735641284256,0.4334,3393.4,3393.3,0.29517]
[1735641284664,0.8818,3393.4,3393.3,0.29517]
[1735641285359,7.25316493,3393.8,3393.7,0.29514]
[1735641285956,0.8806,3393.9,3393.7,0.29514]
[1735641286264,0.29513,3393.8,3393.7,0.29514]
[1735641286663,0.72543,3393.8,3393.7,0.29514]
[1735641287369,0.29515,3393.7,3393.6,0.29514]
[1735641289867,0.29516,3393.6,3393.5,0.29515]
[1735641290064,0.29517,3393.5,3393.4,0.29516]
[1735641290262,0.29518,3393.4,3393.3,0.29517]
[1735641290466,0.75038,3393.4,3393.3,0.29517]
[1735641291767,0.4552,3393.4,3393.3,0.29517]
[1735641292368,0.29515,3393.6,3393.1,0.4541]
[1735641292563,3.663,3393.7,3393.6,0.29515]
[1735641292763,3.95814,3393.7,3393.6,0.29515]
[1735641294974,3.663,3393.7,3393.2,0.73795]
[1735641295176,0.29516,3393.5,3393.4,0.29515]
[1735641296081,0.29515,3393.6,3393.5,0.29515]
[1735641297968,3.95814,3393.7,3393.6,0.29515]
[1735641299173,0.29516,3393.6,3393.5,0.29515]
[1735641299572,3.663,3393.7,3393.2,0.73795]
[1735641299873,3.95815,3393.7,3393.6,0.29515]
[1735641301275,0.75035,3393.7,3393.6,0.29515]
[1735641304582,0.4303,3393.8,3393.2,3.94575]
[1735641304877,0.4481,3394.0,3393.9,0.29512]
[1735641305081,6.95802493,3394.1,3394.0,0.29511]
[1735641305275,6.95802493,3394.1,3394.0,3.50291]
[1735641305674,6.95802493,3394.1,3394.0,3.96424188]
[1735641306077,6.95802493,3394.3,3394.2,0.2951]
[1735641306280,6.95802493,3394.3,3394.2,2.67107681]
[1735641307475,0.4597,3394.6,3394.5,0.29507]
[1735641307786,0.29508,3394.5,3394.4,0.29507]
[1735641308782,0.29508,3394.5,3394.4,0.29508]
[1735641309278,0.4597,3394.6,3394.0,3.2078]
[1735641309487,0.29514,3393.8,3393.7,0.29513]
[1735641309783,0.73776,3394.2,3393.4,0.4405]
[1735641309988,0.29516,3393.6,3393.5,0.29515]
[1735641310190,1.62195,3393.7,3393.6,0.29515]
[1735641312386,1.3268,3393.7,3393.6,0.29515]
[1735641313284,3.2078,3394.3,3393.6,2.67112681]
[1735641313490,0.4546,3394.2,3394.1,0.2951]
[1735641313988,0.4546,3394.2,3393.6,2.37597681]
[1735641314384,0.29511,3394.1,3394.0,0.2951]
[1735641316387,0.7497,3394.2,3394.1,0.2951]
[1735641317787,0.4546,3394.2,3394.1,0.2951]
[1735641318991,0.7497,3394.2,3394.1,0.2951]
[1735641320595,0.4546,3394.2,3394.1,0.2951]
[1735641324001,0.29511,3394.1,3394.0,0.2951]
[1735641324192,0.4546,3394.2,3394.1,0.2951]
[1735641324193,0.7497,3394.2,3394.1,0.2951]
[1735641325400,0.4546,3394.2,3394.1,0.2951]
[1735641327499,0.29507,3394.6,3394.5,0.29506]
[1735641328699,0.29507,3394.6,3393.8,3.94562]
[1735641328899,0.4528,3394.5,3393.9,0.46133998]
[1735641329102,0.29512,3393.9,3393.8,3.50293]
[1735641329296,0.29512,3393.9,3393.8,3.2078]
[1735641330203,3.2078,3394.0,3393.3,0.4233]
[1735641330402,0.29517,3393.4,3393.3,0.29517]
[1735641330798,0.29518,3393.3,3393.2,0.29518]
[1735641330998,0.75228,3393.3,3393.2,0.29518]
[1735641331208,0.4571,3393.3,3393.2,0.29518]
[1735641333405,0.416,3393.6,3393.2,0.29518]
[1735641333599,0.4571,3393.6,3393.5,0.29516]
[1735641334201,0.4571,3393.6,3393.5,41.09516]
[1735641335803,0.75225,3393.6,3393.5,41.09516]
[1735641336106,0.29518,3393.4,3393.3,0.29516]
[1735641336401,0.72576,3393.5,3393.4,0.29516]
[1735641337701,0.4306,3393.5,3393.4,0.29516]
[1735641338805,0.72576,3393.5,3393.4,0.29516]
[1735641339000,0.4571,3393.6,3393.1,0.73797]
[1735641339200,0.4571,3393.6,3393.5,0.29516]
[1735641339409,0.75225,3393.6,3393.5,0.29516]
[1735641340007,0.4577,3393.9,3393.5,0.29516]
[1735641340303,0.71513,3393.8,3393.7,0.29514]
[1735641340706,0.71513,3393.8,3393.6,0.434]
[1735641340707,0.42,3393.8,3393.3,3.94572]
[1735641340899,0.29516,3393.6,3393.5,0.29514]
[1735641341095,0.42,3393.8,3393.4,0.73793]
[1735641341299,0.42,3393.8,3393.7,0.29514]
[1735641341805,0.29516,3393.6,3393.5,0.29514]
[1735641343001,0.42,3393.8,3393.3,0.29516]
[1735641343002,0.29518,3393.4,3393.3,0.29516]
[1735641343603,0.73758,3393.4,3393.3,0.29516]
[1735641349112,0.2952,3393.2,3393.1,0.29518]
[1735641351014,0.72828,3393.3,3393.2,0.29519]
[1735641351717,0.29521,3393.1,3393.0,0.29519]
[1735641352413,0.29522,3392.9,3392.8,0.29521]
[1735641353114,0.75452,3392.9,3392.8,0.29521]
[1735641354419,0.4593,3392.9,3392.8,0.29521]
[1735641355614,0.72828,3393.3,3393.2,0.29519]
[1735641358925,0.2952,3393.2,3393.1,0.29519]
[1735641360925,0.29519,3393.2,3393.1,0.29519]
[1735641361126,0.72829,3393.3,3393.2,0.29519]
[1735641365526,0.4331,3393.3,3393.2,0.29519]
[1735641367234,0.72828,3393.3,3393.2,0.29519]
[1735641367629,3.6409,3393.3,3392.8,0.4513]
[1735641367835,0.73269,3393.2,3393.1,0.29519]
[1735641368136,0.4375,3393.2,3392.8,0.4513]
[1735641368437,0.4432,3393.1,3392.8,0.4513]
[1735641368633,0.29521,3393.0,3392.9,0.2952]
[1735641368840,3.6409,3393.3,3392.8,0.4513]
[1735641369139,0.29519,3393.2,3393.1,0.29519]
[1735641369437,4.0847,3393.3,3392.8,0.4513]
[1735641369739,0.2952,3393.1,3393.0,0.2952]
[1735641370337,0.4331,3393.3,3393.2,0.29519]
[1735641370838,0.72828,3393.3,3393.2,0.29519]
[1735641371239,0.4331,3393.3,3393.2,0.29519]
[1735641372140,0.72828,3393.3,3393.2,0.29519]
[1735641372440,0.29516,3393.5,3393.4,0.29517]
[1735641372638,0.29518,3393.3,3393.2,0.29517]
[1735641372835,0.29517,3393.4,3393.3,0.29517]
[1735641373035,0.29518,3393.3,3393.2,0.29518]
[1735641373231,0.4603,3393.5,3392.9,0.73804]
[1735641373435,0.29517,3393.4,3393.3,0.29517]
[1735641373940,0.29518,3393.3,3393.2,0.29518]
[1735641374341,0.29517,3393.4,3393.3,0.29517]
[1735641375143,0.4603,3393.5,3393.0,40.8]
[1735641375443,0.75546,3393.5,3393.4,0.29517]
[1735641378837,0.29517,3393.4,3393.3,0.75057]
[1735641379441,0.75546,3393.5,3393.4,0.29517]
[1735641381144,0.75546,3393.5,3393.4,0.29515]
[1735641383040,0.4603,3393.5,3393.4,0.29515]
[1735641383447,0.75543,3393.5,3393.4,0.29515]
[1735641384149,0.4293,3393.9,3393.4,0.29515]
[1735641384351,0.4464,3393.8,3393.7,0.29511]
[1735641386043,0.4464,3393.8,3393.7,0.75650054]
[1735641386547,0.74151,3393.8,3393.7,0.75650054]
[1735641386750,0.74151,3393.8,3393.7,0.29511]
[1735641395453,0.4464,3393.8,3393.7,0.29511]
[1735641398652,0.4485,3393.9,3393.8,0.29511]
[1735641400054,0.7436,3393.9,3393.8,0.29511]
[1735641400267,0.4485,3393.9,3393.8,0.29511]
[1735641407568,0.4485,3393.9,3393.8,0.75648109]
[1735641410073,0.4485,3393.9,3393.8,0.29511]
[1735641414366,0.4485,3393.9,3393.8,1.33911398]
[1735641418281,0.4485,3393.9,3393.8,1.80048412]
[1735641420576,6.25053821,3393.9,3393.8,1.80048412]
[1735641421073,6.25053821,3393.9,3393.8,0.75648014]
[1735641421873,6.25053821,3393.9,3393.8,1.17668014]
[1735641422278,6.25053821,3393.9,3393.8,1.5950336]
[1735641422578,6.25053821,3393.9,3393.8,42.76411714]
[1735641422779,0.4485,3393.9,3393.8,42.76411714]
[1735641425076,0.4485,3393.9,3393.8,41.97668014]
[1735641425284,0.4485,3393.9,3393.8,42.83585344]
[1735641426384,0.4485,3393.9,3393.8,53.40183416]
[1735641427685,0.4485,3393.9,3393.8,48.76625912]
[1735641428287,0.4485,3393.9,3393.8,48.76628513]
[1735641428892,0.4485,3393.9,3393.8,55.72539138]
[1735641429795,0.4485,3393.9,3393.8,55.30724789]
[1735641430187,0.4485,3393.9,3393.8,54.86614789]
[1735641430993,0.4485,3393.9,3393.8,52.53548231]
[1735641433095,0.4485,3393.9,3393.8,52.95336775]
[1735641433693,0.4485,3393.9,3393.8,42.3945214]
[1735641433893,0.4485,3393.9,3393.8,42.76358494]
[1735641434196,0.4485,3393.9,3393.8,42.76351586]
[1735641434797,0.4485,3393.9,3393.8,42.76350401]
[1735641436397,0.4485,3393.9,3393.8,42.76356458]
[1735641437289,0.4485,3393.9,3393.8,42.76363836]
[1735641440396,0.4485,3393.9,3393.8,42.76367403]
[1735641441300,0.4485,3393.9,3393.8,48.69480186]
[1735641442198,0.4485,3393.9,3393.8,48.27460186]
[1735641442404,0.4485,3393.9,3393.8,49.31860584]
[1735641442597,0.4485,3393.9,3393.8,49.76320584]
[1735641442798,0.4485,3393.9,3393.8,56.72231209]
[1735641443298,0.4485,3393.9,3393.8,56.72230797]
[1735641446301,0.4485,3393.9,3393.8,55.93527402]
[1735641446505,0.4485,3393.9,3393.8,56.7222589]
[1735641448002,0.4485,3393.9,3393.8,50.79113107]
[1735641448202,0.4485,3393.9,3393.8,43.83202482]
[1735641449501,0.4485,3393.9,3393.8,43.83211309]
[1735641450309,0.4485,3393.9,3393.8,43.463015]
[1735641450702,0.4485,3393.9,3393.8,43.04503994]
[1735641451606,0.4485,3393.9,3393.8,42.60043994]
[1735641452513,0.4485,3393.9,3393.8,43.38757358]
[1735641452700,0.4485,3393.9,3393.8,43.83037358]
[1735641452901,0.4485,3393.9,3393.8,43.83032482]
[1735641454407,5.80203821,3394.3,3393.8,44.5792188]
[1735641454610,6.23433821,3394.3,3394.2,4.54687398]
[1735641454804,6.23433821,3394.3,3394.2,5.33386657]
[1735641455005,6.23433821,3394.3,3394.2,5.79519253]
[1735641455310,6.23433821,3394.3,3394.2,45.80819994]
[1735641455514,6.23433821,3394.3,3394.2,46.17722013]
[1735641456015,0.4323,3394.3,3394.2,59.06380669]
[1735641457110,0.4323,3394.3,3394.2,51.06069646]
[1735641457305,0.4323,3394.3,3394.2,10.93568025]
[1735641457511,0.72736,3394.3,3394.2,6.68387627]
[1735641457809,1.14326,3394.3,3394.2,2.75070627]
[1735641458013,0.8482,3394.3,3394.1,6.95910625]
[1735641458308,0.8482,3394.3,3393.9,0.2951]
[1735641458503,0.2951,3393.9,3393.8,5.96403483]
[1735641458911,0.2951,3393.9,3393.8,9.17183483]
[1735641459315,4.93839932,3393.9,3393.8,4.54690398]
[1735641460616,0.2951,3393.9,3393.8,4.54690398]
[1735641460916,0.2951,3393.9,3393.5,0.73783]
[1735641460917,0.29513,3393.5,3393.4,8.12786085]
[1735641461111,1.33913398,3393.5,3393.4,7.83273085]
[1735641461317,1.33913398,3393.5,3393.4,4.62493085]
[1735641461811,1.04400398,3393.5,3393.2,4.92009085]
[1735641462007,0.29515,3393.3,3393.2,4.92009085]
[1735641462217,4.27200398,3393.7,3393.2,5.66893483]
[1735641462418,0.29515,3393.4,3393.3,0.29514]
[1735641462619,0.29515,3393.3,3393.2,5.96408483]
[1735641462917,3.228,3393.7,3393.2,5.66893483]
[1735641463111,3.228,3393.7,3393.4,1.04400398]
[1735641463312,0.29513,3393.6,3393.5,0.29513]
[1735641463621,1.33913398,3393.6,3393.5,0.29513]
[1735641463813,0.0202,3393.7,3393.2,3.2078]
[1735641464013,0.0202,3393.7,3393.6,0.29512]
[1735641464212,0.31532,3393.7,3393.6,0.29512]
[1735641465822,6.98163717,3393.8,3393.7,0.29512]
[1735641466719,4.63620509,3393.8,3393.7,0.29512]
[1735641467120,4.63620509,3393.8,3393.7,1.63212]
[1735641467918,4.63620509,3394.1,3394.0,0.29509]
[1735641468317,4.63620509,3394.1,3394.0,41.09509]